[Event "DVM U14 2021"]
[Site "Willingen"]
[Date "2022.08.13"]
[Round "1"]
[White "Gering, Jakob"]
[Black "Keck, Johannes"]
[Result "1-0"]
[ECO "D77"]
[WhiteElo "1349"]
[BlackElo "1310"]
[Annotator "NA RC COMBH"]
[PlyCount "111"]
[EventDate "2022.08.12"]
[EventType "team-tourn"]
[EventRounds "7"]
[EventCountry "GER"]
[SourceTitle "playchess.com"]
[Source "ChessBase"]
[SourceQuality "1"]
[TimeControl "40/5400+30:1800+30"]

1. d4 {[%emt 0:00:05]} Nf6 {[%emt 0:00:36]} 2. Nf3 {[%emt 0:00:15]} g6 {[%emt 0:01:46]} 3. g3 {[%emt 0:00:28]} Bg7 {[%emt 0:02:06]} 4. c4 {[%emt 0:01:02]} O-O {[%emt 0:04:37]} 5. Bg2 {[%emt 0:00:28]} d5 {[%emt 0:00:56]} 6. O-O {[%emt 0:00:43]} e6 {[%emt 0:02:47]} 7. Nc3 {[%emt 0:01:34]} b6 {[%emt 0:06:03]} 8. Bf4 {[%emt 0:06:07]} Bb7 {[%emt 0:05:35]} 9. Ne5 {[%emt 0:09:30]} Nbd7 {[%emt 0:04:02]} 10. Rc1 {[%emt 0:06:46]} Rc8 {[%emt 0:06:23]} 11. Qa4 {[%emt 0:04:53]} Nxe5 {[%emt 0:07:55]} 12. dxe5 {[%emt 0:05:39]} Nd7 {[%emt 0:03:18]} 13. cxd5 {[%emt 0:06:05]} exd5 {[%emt 0:05:59]} 14. Nxd5 {[%emt 0:12:08]} Nc5 {[%emt 0:09:24]} 15. Qc4 {[%emt 0:06:58]} g5 {[%emt 0:14:49]} 16. Be3 {[%emt 0:05:25]} Bxe5 {[%emt 0:03:06]} 17. Bxc5 {[%emt 0:08:33]} Bxd5 {[%emt 0:04:41]} 18. Bxd5 {[%emt 0:01:21]} bxc5 {[%emt 0:00:43]} 19. Qxc5 {[%emt 0:03:57]} Bxb2 {[%emt 0:01:49]} 20. Rb1 {[%emt 0:01:07]} Ba3 {[%emt 0:05:17]} 21. Bxf7+ {[%emt 0:02:19]} Rxf7 {[%emt 0:00:12]} 22. Qxa3 {[%emt 0:00:25]} c5 {[%emt 0:00:16]} 23. Rb5 {[%emt 0:06:40]} Rfc7 {[%emt 0:02:31]} 24. Qe3 {[%emt 0:01:02]} Qe7 {[%emt 0:02:12]} 25. Qb3+ {[%emt 0:04:13]} Kf8 {[%emt 0:01:03]} 26. Qc2 {[%emt 0:00:37]} Kg7 {[%emt 0:02:19]} 27. Rd1 {[%emt 0:00:42]} h6 {[%emt 0:00:55]} 28. Rd5 {[%emt 0:01:10]} c4 {[%emt 0:00:33]} 29. e4 {[%emt 0:01:09]} Rc5 {[%emt 0:00:31]} 30. Qc3+ {[%emt 0:00:36]} Kg8 {[%emt 0:00:46]} 31. Rdxc5 {[%emt 0:01:15]} Rxc5 {[%emt 0:00:28]} 32. Qb4 {[%emt 0:00:49]} Re5 {[%emt 0:01:03]} 33. Qxc4+ {[%emt 0:00:16]} Kh7 {[%emt 0:00:19]} 34. Rxe5 {[%emt 0:00:53]} Qxe5 {[%emt 0:00:13]} 35. Qf7+ {[%emt 0:00:44]} Kh8 {[%emt 0:00:18]} 36. Qf8+ {[%emt 0:00:21]} Kh7 {[%emt 0:00:14]} 37. Qf5+ {[%emt 0:00:13]} Qxf5 {[%emt 0:00:07]} 38. exf5 {[%emt 0:00:04]} g4 {[%emt 0:00:42]} 39. Kg2 {[%emt 0:00:36]} h5 {[%emt 0:00:44]} 40. f4 {[%emt 0:01:40]} Kg7 {[%emt 0:00:27]} 41. Kf2 {[%emt 0:30:27]} Kf6 {[%emt 0:30:19]} 42. Ke3 {[%emt 0:00:40]} Kxf5 {[%emt 0:00:11]} 43. Kd4 {[%emt 0:00:34]} h4 {[%emt 0:00:17]} 44. Kd5 {[%emt 0:00:00]} h3 {[%emt 0:00:00]} 45. Kd4 {[%emt 0:00:00]} a5 {[%emt 0:00:00]} 46. a4 {[%emt 0:00:00]} Ke6 {[%emt 0:00:00]} 47. Ke4 {[%emt 0:00:00]} Kd6 {[%emt 0:00:00]} 48. f5 {[%emt 0:00:00]} Kc5 {[%emt 0:00:00]} 49. Ke5 {[%emt 0:00:00]} Kb4 {[%emt 0:00:00]} 50. f6 {[%emt 0:00:00]} Kxa4 {[%emt 0:00:00]} 51. f7 {[%emt 0:00:00]} Kb3 {[%emt 0:00:00]} 52. f8=Q {[%emt 0:00:00]} a4 {[%emt 0:00:46]} 53. Qb8+ {[%emt 0:00:00]} Kc3 {[%emt 0:00:00]} 54. Qb1 {[%emt 0:00:00]} a3 {[%emt 0:00:00]} 55. Qa2 {[%emt 0:00:00]} Kb4 {[%emt 0:00:00]} 56. Ke4 {[%emt 0:00:30]} 1-0

[Event "DVM U14 2021"]
[Site "Willingen"]
[Date "2022.08.13"]
[Round "1"]
[White "Vesszö, Aaron"]
[Black "Wedekind, Ferdinand"]
[Result "0-1"]
[ECO "E05"]
[WhiteElo "1306"]
[BlackElo "1446"]
[Annotator "NA RC COMBH"]
[PlyCount "134"]
[EventDate "2022.08.12"]
[EventType "team-tourn"]
[EventRounds "7"]
[EventCountry "GER"]
[SourceTitle "playchess.com"]
[Source "ChessBase"]
[SourceQuality "1"]
[TimeControl "40/5400+30:1800+30"]

1. d4 {[%emt 0:00:11]} d5 {[%emt 0:00:06]} 2. Nf3 {[%emt 0:00:04]} Nf6 {[%emt 0:00:10]} 3. g3 {[%emt 0:00:09]} e6 {[%emt 0:00:12]} 4. c4 {[%emt 0:00:08]} Be7 {[%emt 0:00:43]} 5. Bg2 {[%emt 0:00:08]} O-O {[%emt 0:00:13]} 6. O-O {[%emt 0:00:06]} dxc4 {[%emt 0:00:07]} 7. Ne5 {[%emt 0:00:17]} c5 {[%emt 0:00:30]} 8. dxc5 {[%emt 0:09:24]} Qc7 {[%emt 0:00:57]} 9. Nxc4 {[%emt 0:10:27]} Rd8 {[%emt 0:01:54]} 10. Qc2 {[%emt 0:01:52]} Qxc5 {[%emt 0:05:02]} 11. Ne3 {[%emt 0:00:56]} Qb6 {[%emt 0:04:45]} 12. Nc3 {[%emt 0:01:58]} Nc6 {[%emt 0:18:22]} 13. Nc4 {[%emt 0:17:22]} Qc5 {[%emt 0:03:05]} 14. b3 {[%emt 0:13:10]} Nd5 {[%emt 0:19:12]} 15. Nxd5 {[%emt 0:09:05]} exd5 {[%emt 0:01:55]} 16. Ne3 {[%emt 0:00:51]} Qxc2 {[%emt 0:03:40]} 17. Nxc2 {[%emt 0:00:00]} Bf6 {[%emt 0:00:20]} 18. Rb1 {[%emt 0:00:00]} Bf5 {[%emt 0:00:39]} 19. e4 {[%emt 0:00:29]} dxe4 {[%emt 0:01:09]} 20. Ne3 {[%emt 0:00:15]} Bg6 {[%emt 0:01:50]} 21. Bb2 {[%emt 0:01:17]} Bxb2 {[%emt 0:02:49]} 22. Rxb2 {[%emt 0:00:18]} Rd4 {[%emt 0:03:13]} 23. Rd1 {[%emt 0:06:07]} Rxd1+ {[%emt 0:04:13]} 24. Nxd1 {[%emt 0:01:28]} Rd8 {[%emt 0:01:28]} 25. Nc3 {[%emt 0:00:23]} Rd3 {[%emt 0:02:28]} 26. Rc2 {[%emt 0:02:43]} Nd4 {[%emt 0:06:10]} 27. Rc1 {[%emt 0:01:00]} Rxc3 {[%emt 0:00:27]} 28. Rxc3 {[%emt 0:06:36]} Ne2+ {[%emt 0:00:17]} 29. Kf1 {[%emt 0:00:16]} Nxc3 {[%emt 0:00:08]} 30. a4 {[%emt 0:00:15]} f5 {[%emt 0:01:02]} 31. a5 {[%emt 0:00:16]} Kf7 {[%emt 0:00:40]} 32. Ke1 {[%emt 0:00:29]} Ke6 {[%emt 0:00:58]} 33. Kd2 {[%emt 0:00:24]} Nd5 {[%emt 0:01:04]} 34. h4 {[%emt 0:00:26]} Bh5 {[%emt 0:01:36]} 35. Bf1 {[%emt 0:01:50]} h6 {[%emt 0:02:10]} 36. Bc4 {[%emt 0:00:54]} Ke5 {[%emt 0:00:44]} 37. Bxd5 {[%emt 0:02:30]} Kxd5 {[%emt 0:00:14]} 38. Kc3 {[%emt 0:00:06]} Be2 {[%emt 0:00:52]} 39. Kd2 {[%emt 0:00:27]} Bb5 {[%emt 0:00:13]} 40. Ke3 {[%emt 0:02:14]} g5 {[%emt 0:00:32]} 41. f3 {[%emt 0:30:56]} exf3 {[%emt 0:30:35]} 42. Kxf3 {[%emt 0:00:17]} Ke5 {[%emt 0:00:34]} 43. Ke3 {[%emt 0:02:13]} f4+ {[%emt 0:00:18]} 44. gxf4+ {[%emt 0:00:14]} gxf4+ {[%emt 0:00:04]} 45. Kf3 {[%emt 0:00:12]} Kf5 {[%emt 0:00:32]} 46. b4 {[%emt 0:00:12]} Bc6+ {[%emt 0:00:33]} 47. Kf2 {[%emt 0:00:09]} Kg4 {[%emt 0:00:05]} 48. Kf1 {[%emt 0:00:08]} Kf3 {[%emt 0:00:15]} 49. h5 {[%emt 0:00:08]} Bb5+ {[%emt 0:00:05]} 50. Ke1 {[%emt 0:00:11]} Kg2 {[%emt 0:00:07]} 51. Kd2 {[%emt 0:00:07]} f3 {[%emt 0:00:03]} 52. Ke3 {[%emt 0:00:07]} f2 {[%emt 0:00:05]} 53. Ke4 {[%emt 0:00:04]} f1=Q {[%emt 0:00:13]} 54. Kd5 {[%emt 0:00:09]} Qf4 {[%emt 0:00:43]} 55. Ke6 {[%emt 0:00:09]} Bc4+ {[%emt 0:00:10]} 56. Kd7 {[%emt 0:00:10]} Qf6 {[%emt 0:00:18]} 57. a6 {[%emt 0:00:10]} bxa6 {[%emt 0:00:16]} 58. Kc7 {[%emt 0:00:11]} Qb6+ {[%emt 0:00:10]} 59. Kd7 {[%emt 0:00:08]} Bb5+ {[%emt 0:00:33]} 60. Ke7 {[%emt 0:00:10]} Kf3 {[%emt 0:00:10]} 61. Kf7 {[%emt 0:01:22]} Kf4 {[%emt 0:00:07]} 62. Kg7 {[%emt 0:00:18]} Kg5 {[%emt 0:00:30]} 63. Kh7 {[%emt 0:00:07]} Bd3+ {[%emt 0:00:08]} 64. Kg7 {[%emt 0:00:07]} Qf6+ {[%emt 0:00:12]} 65. Kg8 {[%emt 0:00:06]} Qe7 {[%emt 0:00:18]} 66. b5 {[%emt 0:00:04]} Kf6 {[%emt 0:00:20]} 67. b6 {[%emt 0:00:05]} Qe8# {[%emt 0:00:40]} 0-1

[Event "DVM U14 2021"]
[Site "Willingen"]
[Date "2022.08.13"]
[Round "1"]
[White "Huber, Laura"]
[Black "Widmann, Maximilian"]
[Result "0-1"]
[ECO "B19"]
[WhiteElo "1302"]
[BlackElo "1573"]
[Annotator "NA RC COMBH"]
[PlyCount "58"]
[EventDate "2022.08.12"]
[EventType "team-tourn"]
[EventRounds "7"]
[EventCountry "GER"]
[SourceTitle "playchess.com"]
[Source "ChessBase"]
[SourceQuality "1"]
[TimeControl "40/5400+30:1800+30"]

1. e4 {[%emt 0:00:01]} c6 {[%emt 0:00:09]} 2. d4 {[%emt 0:00:02]} d5 {[%emt 0:00:09]} 3. Nc3 {[%emt 0:00:13]} dxe4 {[%emt 0:00:19]} 4. Nxe4 {[%emt 0:00:06]} Bf5 {[%emt 0:00:19]} 5. Ng3 {[%emt 0:00:09]} Bg6 {[%emt 0:00:09]} 6. h4 {[%emt 0:00:11]} h6 {[%emt 0:00:11]} 7. Nf3 {[%emt 0:00:29]} Nd7 {[%emt 0:00:28]} 8. h5 {[%emt 0:00:06]} Bh7 {[%emt 0:00:20]} 9. Bd3 {[%emt 0:00:21]} Bxd3 {[%emt 0:00:12]} 10. Qxd3 {[%emt 0:00:04]} e6 {[%emt 0:00:31]} 11. Bd2 {[%emt 0:07:58]} Ngf6 {[%emt 0:09:26]} 12. O-O-O {[%emt 0:03:52]} Qc7 {[%emt 0:04:02]} 13. Ne4 {[%emt 0:06:30]} O-O-O {[%emt 0:09:28]} 14. Nxf6 {[%emt 0:19:23]} Nxf6 {[%emt 0:01:19]} 15. Qe2 {[%emt 0:01:13]} Bd6 {[%emt 0:09:38]} 16. Kb1 {[%emt 0:11:50]} Kb8 {[%emt 0:16:44]} 17. Bc1 {[%emt 0:08:02]} c5 {[%emt 0:16:36]} 18. dxc5 {[%emt 0:03:10]} Qxc5 {[%emt 0:09:08]} 19. Be3 {[%emt 0:02:36]} Qb4 {[%emt 0:06:10]} 20. Rd4 {[%emt 0:06:55]} Qa5 {[%emt 0:02:13]} 21. Rhd1 {[%emt 0:03:51]} Nd5 {[%emt 0:04:26]} 22. Bd2 {[%emt 0:05:35]} Qb6 {[%emt 0:01:47]} 23. Be3 {[%emt 0:07:43]} Nc3+ {[%emt 0:01:41]} 24. Ka1 {[%emt 0:01:01]} Nxe2 {[%emt 0:00:15]} 25. R4d2 {[%emt 0:01:10]} Bc5 {[%emt 0:01:51]} 26. Bxc5 {[%emt 0:00:58]} Rxd2 {[%emt 0:00:45]} 27. Rxd2 {[%emt 0:00:19]} Qxc5 {[%emt 0:00:12]} 28. Rxe2 {[%emt 0:00:06]} Rd8 {[%emt 0:00:12]} 29. a3 {[%emt 0:00:12]} Rd1+ {[%emt 0:00:19]} 0-1

[Event "DVM U14 2021"]
[Site "Willingen"]
[Date "2022.08.13"]
[Round "1"]
[White "Walter, Romeo"]
[Black "Tietz, Bennit"]
[Result "0-1"]
[ECO "A25"]
[WhiteElo "1197"]
[BlackElo "1684"]
[Annotator "NA RC COMBH"]
[PlyCount "34"]
[EventDate "2022.08.12"]
[EventType "team-tourn"]
[EventRounds "7"]
[EventCountry "GER"]
[SourceTitle "playchess.com"]
[Source "ChessBase"]
[SourceQuality "1"]
[TimeControl "40/5400+30:1800+30"]

1. c4 {[%emt 0:00:15]} e5 {[%emt 0:00:00]} 2. Nc3 {[%emt 0:00:16]} Nc6 {[%emt 0:00:52]} 3. g3 {[%emt 0:00:27]} Bc5 {[%emt 0:00:38]} 4. Bg2 {[%emt 0:00:17]} d6 {[%emt 0:00:31]} 5. e3 {[%emt 0:00:15]} a6 {[%emt 0:01:54]} 6. Nge2 {[%emt 0:00:30]} Ba7 {[%emt 0:02:21]} 7. O-O {[%emt 0:00:45]} h5 {[%emt 0:11:39]} 8. d4 {[%emt 0:01:00]} h4 {[%emt 0:11:03]} 9. Bxc6+ {[%emt 0:01:03]} bxc6 {[%emt 0:00:52]} 10. dxe5 {[%emt 0:10:29]} Bh3 {[%emt 0:04:11]} 11. Re1 {[%emt 0:10:31]} Bg4 {[%emt 0:03:01]} 12. Qa4 {[%emt 0:12:50]} Bf3 {[%emt 0:06:08]} 13. e4 {[%emt 0:05:33]} Qd7 {[%emt 0:07:06]} 14. exd6 {[%emt 0:09:47]} Kf8 {[%emt 0:22:56]} 15. Qa3 {[%emt 0:11:57]} hxg3 {[%emt 0:14:57]} 16. Bf4 {[%emt 0:01:17]} Bxf2+ {[%emt 0:00:07]} 17. Kf1 {[%emt 0:00:09]} Qh3# 0-1

[Event "DVM U14 2021"]
[Site "Willingen"]
[Date "2022.08.13"]
[Round "1"]
[White "Negru, Maximilian"]
[Black "Jones, Richard S."]
[Result "1-0"]
[ECO "C54"]
[WhiteElo "1187"]
[BlackElo "2394"]
[Annotator "TA"]
[PlyCount "69"]
[EventDate "2022.08.12"]
[EventType "team-tourn"]
[EventRounds "7"]
[EventCountry "GER"]
[SourceTitle "playchess.com"]
[Source "ChessBase"]
[SourceQuality "1"]
[TimeControl "40/5400+30:1800+30"]

{[%evp 19,69,31,39,28,27,23,22,8,15,14,71,27,80,71,107,55,84,68,172,120,180,116,175,133,408,408,567,564,650,616,804,779,1227,1214,1174,1108,1115,1046,2264,2132,2533,2368,29983,29984,29984,29985,29985,29986,29990,29991,29991,836]} 1. e4 {[%emt 0:00:03]} e5 {[%emt 0:00:03]} 2. Nf3 {[%emt 0:00:04]} Nc6 {[%emt 0:00:05]} 3. Bc4 {[%emt 0:00:05]} Bc5 {[%emt 0:00:05]} 4. c3 {[%emt 0:00:03][%cal Bc2c3,Bc3d4,Bd4d5][%mdl 32]} Nf6 {[%emt 0:00:08]} 5. d4 {[%emt 0:00:05]} exd4 {[%emt 0:00:08]} 6. cxd4 {[%emt 0:00:06]} Bb4+ {[%emt 0:00:09]} 7. Bd2 {[%emt 0:00:20]} Bxd2+ {[%emt 0:01:58]} 8. Nbxd2 {[%emt 0:00:10]} d6 {[%emt 0:00:48]} 9. d5 {[%emt 0:00:19]} Ne7 {[%emt 0:00:35]} 10. O-O {[%emt 0:00:41]} O-O {[%emt 0:00:07]} 11. Re1 {[%emt 0:03:11] [#] C54: Giuoco Piano: 4 c3 Nf6, main lines with 5 d4 and 5 d3.} a6 $146 {[%emt 0:07:58]} ({Predecessor:} 11... Ng6 12. Nf1 Bg4 13. Ng3 Bxf3 14. Qxf3 Ne5 15. Qc3 Nxc4 16. Qxc4 Re8 17. Rac1 Rc8 18. Rc3 c5 19. f4 a6 {1-0 (19) Petraitis,G (1750)-Barsciauskas,G (1588) Lithuania 2019}) 12. h3 {[%emt 0:04:51]} Re8 {[%emt 0:00:25]} 13. Qb3 {[%emt 0:06:02] The position is equal.} b5 {[%emt 0:06:36]} 14. Bf1 {[%emt 0:07:05]} Ng6 {[%emt 0:03:51]} (14... Bd7 $11) 15. a4 {[%emt 0:00:49]} bxa4 {[%emt 0:05:41]} (15... Bd7 $1 $11) 16. Rxa4 $16 {[%emt 0:04:07]} Nd7 {[%emt 0:01:47]} 17. Qa2 {[%emt 0:07:17] 0x0.0005ec95e06adp-1022s more active pieces.} ({White should try} 17. Qc3 $16) 17... Bb7 {[%emt 0:10:07]} 18. b4 {[%emt 0:15:28]} ({And not} 18. Bxa6 Nc5 19. Bb5 Nxa4 20. Bxa4 Qe7 $17) 18... Qc8 {[%emt 0:06:16]} (18... Nb6 $14) 19. Ra5 {[%emt 0:04:25]} (19. Rc1 $18) 19... Nge5 {[%emt 0:09:15] [#]} (19... Nde5 $16 {was necessary.}) 20. Nxe5 {[%emt 0:07:24]} ({Better is} 20. Nd4 $1 $18) 20... Rxe5 {[%emt 0:03:24]} (20... Nxe5 $16 21. Rc1 Re7) 21. Ra1 {[%emt 0:04:16] aiming for b5.} Nb8 $2 {[%emt 0:08:48][%mdl 8192] This move loses the game for Black.} (21... Nb6 $16 {was worth a try.} 22. Bxa6 Bxa6) 22. b5 $18 {[%emt 0:00:57]} Qd8 {[%emt 0:04:11]} 23. bxa6 {[%emt 0:01:40]} Bc8 {[%emt 0:01:10]} 24. a7 {[%emt 0:01:03]} Nd7 {[%emt 0:00:18]} 25. Bb5 {[%emt 0:02:57]} Bb7 {[%emt 0:01:29]} 26. Bxd7 {[%emt 0:00:50]} Qxd7 {[%emt 0:01:09]} 27. Rb1 {[%emt 0:00:13]} c6 {[%emt 0:03:44]} 28. Nc4 {[%emt 0:10:02]} Re7 {[%emt 0:02:45]} 29. Nb6 {[%emt 0:00:49][%csl LRa8,LRd7]} Qd8 {[%emt 0:05:35]} 30. Nxa8 {[%emt 0:00:12]} Qxa8 {[%emt 0:00:07]} 31. Qb3 {[%emt 0:00:13] White mates.} g6 {[%emt 0:03:31] [#]} 32. Qxb7 $3 {[%emt 0:00:23][%mdl 512]} Rxb7 {[%emt 0:00:24]} 33. Rxb7 {[%emt 0:00:06]} Qxb7 {[%emt 0:00:32]} 34. a8=Q+ {[%emt 0:00:08]} Qxa8 {[%emt 0:00:16]} 35. Rxa8+ {[%emt 0:00:04] Weighted Error Value: White=0.16 (very precise) /Black=0.86} 1-0

[Event "DVM U14 2021"]
[Site "Willingen"]
[Date "2022.08.13"]
[Round "1"]
[White "Dickel, Karl-Joachim"]
[Black "Jankowski, Antek"]
[Result "*"]
[ECO "B12"]
[WhiteElo "1178"]
[BlackElo "1119"]
[Annotator "NA RC COMBH"]
[PlyCount "53"]
[EventDate "2022.08.12"]
[EventType "team-tourn"]
[EventRounds "7"]
[EventCountry "GER"]
[SourceTitle "playchess.com"]
[Source "ChessBase"]
[SourceQuality "1"]
[TimeControl "40/5400+30:1800+30"]

1. e4 {[%emt 0:00:01]} c6 {[%emt 0:00:00]} 2. d4 {[%emt 0:00:10]} d5 {[%emt 0:00:00]} 3. e5 {[%emt 0:00:13]} Bf5 {[%emt 0:00:00]} 4. Nf3 {[%emt 0:00:21]} e6 {[%emt 0:00:02]} 5. Nc3 {[%emt 0:00:33]} c5 {[%emt 0:01:30]} 6. Bb5+ {[%emt 0:01:32]} Nc6 {[%emt 0:00:19]} 7. Bxc6+ {[%emt 0:00:07]} bxc6 {[%emt 0:00:06]} 8. Be3 {[%emt 0:01:53]} cxd4 {[%emt 0:03:24]} 9. Nxd4 {[%emt 0:00:31]} Qc7 {[%emt 0:08:49]} 10. Nf3 {[%emt 0:05:47]} Bg4 {[%emt 0:01:16]} 11. Qd4 {[%emt 0:03:45]} Bxf3 {[%emt 0:01:30]} 12. gxf3 {[%emt 0:00:11]} c5 {[%emt 0:01:00]} 13. Qa4+ {[%emt 0:00:07]} Qd7 {[%emt 0:00:41]} 14. Qxd7+ {[%emt 0:01:16]} Kxd7 {[%emt 0:00:02]} 15. Na4 {[%emt 0:02:14]} Rc8 {[%emt 0:02:46]} 16. Rd1 {[%emt 0:02:10]} f6 {[%emt 0:02:09]} 17. f4 {[%emt 0:01:44]} h6 {[%emt 0:03:52]} 18. h4 {[%emt 0:01:03]} h5 {[%emt 0:04:24]} 19. exf6 {[%emt 0:05:09]} Nxf6 {[%emt 0:01:44]} 20. f3 {[%emt 0:00:39]} g6 {[%emt 0:04:46]} 21. Rg1 {[%emt 0:01:46]} Rg8 {[%emt 0:00:33]} 22. c3 {[%emt 0:02:06]} Rc7 {[%emt 0:04:56]} 23. a3 {[%emt 0:03:03]} Bd6 {[%emt 0:02:56]} 24. b4 {[%emt 0:02:14]} cxb4 {[%emt 0:03:12]} 25. cxb4 {[%emt 0:00:24]} Ke7 {[%emt 0:01:08]} 26. Nc5 {[%emt 0:01:36]} Nd7 {[%emt 0:08:18]} 27. Rc1 {[%emt 0:01:31]} *

[Event "DVM U14 2021"]
[Site "Willingen"]
[Date "2022.08.13"]
[Round "1"]
[White "Sun, Christopher"]
[Black "Fettig, Michel"]
[Result "*"]
[ECO "D11"]
[WhiteElo "1091"]
[BlackElo "1370"]
[Annotator "NA RC COMBH"]
[PlyCount "72"]
[EventDate "2022.08.12"]
[EventType "team-tourn"]
[EventRounds "7"]
[EventCountry "GER"]
[SourceTitle "playchess.com"]
[Source "ChessBase"]
[SourceQuality "1"]
[TimeControl "40/5400+30:1800+30"]

1. d4 {[%emt 0:00:14]} d5 {[%emt 0:00:06]} 2. Nf3 {[%emt 0:00:21]} Nf6 {[%emt 0:00:45]} 3. g3 {[%emt 0:00:50]} Bf5 {[%emt 0:01:56]} 4. Bg2 {[%emt 0:00:50]} e6 {[%emt 0:00:23]} 5. O-O {[%emt 0:00:38]} Bd6 {[%emt 0:00:54]} 6. c4 {[%emt 0:01:59]} c6 {[%emt 0:00:26]} 7. cxd5 {[%emt 0:02:11]} cxd5 {[%emt 0:02:22]} 8. Nc3 {[%emt 0:00:21]} O-O {[%emt 0:00:48]} 9. Nh4 {[%emt 0:01:16]} Bg6 {[%emt 0:01:00]} 10. Nxg6 {[%emt 0:00:31]} fxg6 {[%emt 0:00:40]} 11. e4 {[%emt 0:00:50]} dxe4 {[%emt 0:01:04]} 12. Nxe4 {[%emt 0:01:06]} Nc6 {[%emt 0:01:52]} 13. Bg5 {[%emt 0:04:07]} Be7 {[%emt 0:04:04]} 14. Nc5 {[%emt 0:02:55]} Bxc5 {[%emt 0:02:31]} 15. dxc5 {[%emt 0:01:00]} Qxd1 {[%emt 0:02:56]} 16. Raxd1 {[%emt 0:00:48]} Rad8 {[%emt 0:01:28]} 17. Bh3 {[%emt 0:01:26]} Nd4 {[%emt 0:02:11]} 18. Kg2 {[%emt 0:02:14]} Nf5 {[%emt 0:03:28]} 19. Bxf6 {[%emt 0:01:19]} gxf6 {[%emt 0:00:13]} 20. b4 {[%emt 0:02:41]} Kf7 {[%emt 0:01:14]} 21. b5 {[%emt 0:01:17]} Ke7 {[%emt 0:01:52]} 22. c6 {[%emt 0:01:40]} bxc6 {[%emt 0:00:51]} 23. bxc6 {[%emt 0:00:22]} Nd6 {[%emt 0:00:19]} 24. Rfe1 {[%emt 0:00:31]} f5 {[%emt 0:00:22]} 25. Rd5 {[%emt 0:02:24]} Rc8 {[%emt 0:01:43]} 26. Ra5 {[%emt 0:01:06]} Rc7 {[%emt 0:01:31]} 27. Rc1 {[%emt 0:00:49]} Ra8 {[%emt 0:02:17]} 28. Kf3 {[%emt 0:01:11]} Ne4 {[%emt 0:01:27]} 29. Kf4 {[%emt 0:02:09]} Kf6 {[%emt 0:01:00]} 30. f3 {[%emt 0:01:10]} Nd6 {[%emt 0:04:06]} 31. Bf1 {[%emt 0:04:13]} Rac8 {[%emt 0:01:45]} 32. Rac5 {[%emt 0:02:04]} g5+ {[%emt 0:01:51]} 33. Ke3 {[%emt 0:00:25]} Nf7 {[%emt 0:01:22]} 34. Ba6 {[%emt 0:01:14]} Rb8 {[%emt 0:00:39]} 35. Bb7 {[%emt 0:01:24]} Nd6 {[%emt 0:00:53]} 36. Ba6 {[%emt 0:01:39]} Rb6 {[%emt 0:00:11]} *

[Event "DVM U14 2021"]
[Site "Willingen"]
[Date "2022.08.13"]
[Round "2"]
[White "Jones, Richard S."]
[Black "Huber, Laura"]
[Result "1/2-1/2"]
[ECO "C50"]
[WhiteElo "2394"]
[BlackElo "1302"]
[Annotator "TA"]
[PlyCount "69"]
[EventDate "2022.08.12"]
[EventType "team-tourn"]
[EventRounds "7"]
[EventCountry "GER"]
[SourceTitle "playchess.com"]
[Source "ChessBase"]
[SourceQuality "1"]
[TimeControl "40/5400+30:1800+30"]

{[%evp 9,69,6,16,-2,0,-4,0,5,14,-7,-2,-18,-27,-52,-42,-58,-56,-101,-100,-125,-118,-193,-105,-128,-49,-72,-5,-22,-3,-2,0,-74,-58,-81,-45,-111,-110,-150,-157,-161,-51,-50,-43,-41,-32,-39,-26,-22,-30,-171,-172,-172,-172,-194,-162,-151,-158,-162,-163,-243,-217,-211]} 1. e4 {[%emt 0:00:01]} e5 {[%emt 0:00:03]} 2. Nf3 {[%emt 0:00:05]} Nc6 {[%emt 0:00:09]} 3. Bc4 {[%emt 0:00:06]} Bc5 {[%emt 0:00:04]} 4. d3 {[%emt 0:00:32]} d6 {[%emt 0:00:07]} 5. h3 {[%emt 0:00:57]} Na5 {[%emt 0:00:16]} 6. Bb3 {[%emt 0:00:10] C50: Hungarian Defence and Giuoco Pianissimo.} Nxb3 {[%emt 0:00:03]} 7. axb3 {[%emt 0:00:05]} Be6 {[%emt 0:00:16]} 8. Nc3 {[%emt 0:01:31] [#] The position is equal.} a6 $146 {[%emt 0:03:41]} ({Predecessor:} 8... Ne7 9. O-O O-O 10. Bg5 Qd7 11. Qd2 Ng6 12. Ne2 f5 13. exf5 Bxf5 14. Nh4 Nxh4 15. Bxh4 {½-½ (56) Duplancic,L-Jaksic,J (1385) Trogir 2017}) 9. Ne2 {[%emt 0:02:40]} Ne7 {[%emt 0:08:36]} 10. Bd2 {[%emt 0:04:21]} f5 {[%emt 0:04:50]} 11. b4 {[%emt 0:11:42]} Bb6 {[%emt 0:03:07]} 12. Nc3 {[%emt 0:02:41]} O-O {[%emt 0:04:29]} 13. Ng5 {[%emt 0:08:20]} Bd7 {[%emt 0:01:31]} ({Of course not} 13... Bf7 $6 14. O-O $11) 14. Na4 {[%emt 0:03:45]} Ba7 {[%emt 0:01:31]} 15. c4 {[%emt 0:03:01]} (15. Nc3 $17) 15... fxe4 {[%emt 0:06:07]} (15... h6 $19 16. Nf3 fxe4 17. dxe4 Qe8) 16. Nxe4 $17 {[%emt 0:01:30]} Bc6 {[%emt 0:11:25]} (16... Nc6 $17 17. O-O Bf5) 17. Nac3 $15 {[%emt 0:02:29]} Ng6 {[%emt 0:13:32]} (17... Qe8 $17) 18. O-O $1 $11 {[%emt 0:04:52]} Nf4 {[%emt 0:03:02]} 19. Be3 {[%emt 0:08:31]} Bd7 {[%emt 0:08:33]} 20. Kh2 {[%emt 0:12:14] [#]} (20. b5 $11 {keeps the balance.}) 20... Qh4 $1 $17 {[%emt 0:02:47][%cal Of4g2]} 21. Bxf4 {[%emt 0:03:35]} Qxf4+ {[%emt 0:00:33]} 22. g3 {[%emt 0:00:51]} ({White should play} 22. Kg1 $1 $15) 22... Qh6 {[%emt 0:01:37]} 23. h4 {[%emt 0:02:28]} Qe6 {[%emt 0:03:55]} 24. Ng5 {[%emt 0:06:54] Prevents Qh3+.} Qg4 {[%emt 0:04:44]} (24... Qe8 $19 {aiming for ...h6.} 25. c5 h6 26. Qb3+ Kh8) 25. Qxg4 $15 {[%emt 0:06:20]} Bxg4 {[%emt 0:00:01]} 26. f3 {[%emt 0:00:11]} Bf5 {[%emt 0:00:48]} 27. Nge4 {[%emt 0:02:05]} Bd4 {[%emt 0:01:47]} 28. g4 {[%emt 0:03:25]} Be6 {[%emt 0:00:51]} 29. Ra2 {[%emt 0:00:42] This move loses the game for White.} (29. Kg3 $11 {and White has nothing to worry.}) 29... Bxg4 $19 {[%emt 0:02:16] Black is clearly better.} 30. Kg3 {[%emt 0:00:25]} Be6 {[%emt 0:00:34]} 31. Rfa1 {[%emt 0:01:44]} Rac8 {[%emt 0:06:30]} 32. b5 {[%emt 0:01:49]} axb5 {[%emt 0:00:21]} 33. Nxb5 {[%emt 0:00:08]} Bb6 {[%emt 0:00:27] This bishop pair is nice.} 34. Rc1 {[%emt 0:01:43]} (34. b4 $142) 34... d5 {[%emt 0:05:01]} 35. Ng5 {[%emt 0:03:30] Weighted Error Value: White=0.31/Black=0.17 (very precise)} 1/2-1/2